fUSD/lending_fUSD_20241222
["ID","MTS","AMOUNT","RATE_DAILY","PERIOD"]
[346295309,1734877850347,-500.0,0.00019726,2]
[346295310,1734877850357,-39655.14,0.00019726,2]
[346295311,1734877850367,-500.0,0.00019726,2]
[346295312,1734877850376,-500.0,0.00019726,2]
[346295313,1734877850386,-500.0,0.00019726,2]
[346295314,1734877850396,-788.51,0.00019726,2]
[346295315,1734877850406,-500.0,0.00019726,2]
[346295316,1734877850416,-3192.85,0.00019726,2]
[346295317,1734877850426,-6342.98,0.00019726,2]
[346295318,1734877850435,-656.08,0.00019726,2]
[346295319,1734877850445,-57274.95,0.00019726,2]
[346295320,1734877850454,-630.43,0.00019726,2]
[346295321,1734877850464,-616.99,0.00019726,2]
[346295322,1734877850473,-1504.9,0.00019726,2]
[346295323,1734877850482,-596.06,0.00019726,2]
[346295324,1734877850492,-1291.47,0.00019726,2]
[346295325,1734877850501,-500.0,0.00019726,2]
[346295326,1734877850511,-500.0,0.00019726,2]
[346295327,1734877850520,-500.0,0.00019726,2]
[346295328,1734877850530,-9963.41,0.00019726,2]
[346295329,1734877850540,-1367.86,0.00019726,2]
[346295330,1734877850550,-1222.36,0.00019726,2]
[346295331,1734877850559,-598.3,0.00019726,2]
[346295332,1734877850568,-707.92,0.00019726,2]
[346295333,1734877850578,-500.0,0.00019726,2]
[346295334,1734877850587,-6900.51,0.00019726,2]
[346295335,1734877850597,-500.0,0.00019726,2]
[346295336,1734877850606,-500.25,0.00019726,2]
[346295337,1734877850616,-500.0,0.00019726,2]
[346295338,1734877850625,-500.0,0.00019726,2]
[346295339,1734877850634,-6786.32,0.00019726,2]
[346295340,1734877850645,-662.61,0.00019726,2]
[346295341,1734877850655,-4720.3,0.00019726,2]
[346295342,1734877850665,-92391.52,0.00019726,2]
[346295343,1734877850674,-3376.41,0.00019726,2]
[346295344,1734877850684,-3622.04,0.00019726,2]
[346295345,1734877850693,-500.0,0.00019726,2]
[346295346,1734877850703,-500.0,0.00019726,2]
[346295347,1734877850712,-1739.09,0.00019726,2]
[346295348,1734877850722,-1394.93,0.00019726,2]
[346295349,1734877850731,-500.0,0.00019726,2]
[346295350,1734877850741,-500.0,0.00019726,2]
[346295351,1734877850750,-698.42,0.00019726,2]
[346295352,1734877850760,-979.42,0.00019726,2]
[346295353,1734877850769,-1054.08,0.00019726,2]
[346295354,1734877850779,-3215.89,0.00019726,2]
[346295355,1734877850789,-500.0,0.00019726,2]
[346295356,1734877850799,-2666.71,0.00019726,2]
[346295357,1734877850808,-15734.91,0.00019726,2]
[346295358,1734877850818,-500.0,0.00019726,2]
[346295359,1734877850827,-857.83,0.00019726,2]
[346295360,1734877850837,-26235.85,0.00019726,2]
[346295361,1734877850846,-812.98,0.00019726,2]
[346295362,1734877850855,-500.0,0.00019726,2]
[346295363,1734877850865,-500.0,0.00019726,2]
[346295364,1734877850874,-778.95,0.00019726,2]
[346295365,1734877850883,-723.17,0.00019726,2]
[346295366,1734877850893,-9970.92,0.00019726,2]
[346295367,1734877850903,-24609.36,0.00019726,2]
[346295368,1734877850912,-1438.94,0.00019726,2]
[346295369,1734877850922,-596.1,0.00019726,2]
[346295370,1734877850931,-500.0,0.00019726,2]
[346295371,1734877850940,-500.0,0.00019726,2]
[346295372,1734877850950,-7570.44,0.00019726,2]
[346295373,1734877850960,-1774.55,0.00019726,2]
[346295374,1734877850969,-2123.77,0.00019726,2]
[346295375,1734877850978,-500.0,0.00019726,2]
[346295376,1734877850988,-637.52,0.00019726,2]
[346295377,1734877850997,-904.46,0.00019726,2]
[346295378,1734877851008,-1650.21,0.00019726,2]
[346295379,1734877851017,-5862.71,0.00019726,2]
[346295380,1734877851026,-500.0,0.00019726,2]
[346295381,1734877851035,-500.0,0.00019726,2]
[346295382,1734877851046,-9034.82,0.00019726,2]
[346295383,1734877851055,-500.0,0.00019726,2]
[346295384,1734877851067,-500.0,0.00019726,2]
[346295385,1734877851076,-500.0,0.00019726,2]
[346295386,1734877851086,-586.48,0.00019726,2]
[346295387,1734877851095,-3741.45,0.00019726,2]
[346295388,1734877851105,-500.0,0.00019726,2]
[346295389,1734877851114,-4796.31,0.00019726,2]
[346295390,1734877851123,-2570.84,0.00019726,2]
[346295391,1734877851132,-1015.42,0.00019726,2]
[346295392,1734877851145,-500.0,0.00019726,2]
[346295393,1734877851155,-8523.25,0.00019726,2]
[346295394,1734877851165,-6010.73,0.00019726,2]
[346295395,1734877851174,-500.0,0.00019726,2]
[346295396,1734877851184,-885.61,0.00019726,2]
[346295397,1734877851193,-1100.37,0.00019726,2]
[346295398,1734877851203,-792.43,0.00019726,2]
[346295399,1734877851212,-11364.4,0.00019726,2]
[346295400,1734877851221,-4871.46,0.00019726,2]
[346295401,1734877851230,-500.0,0.00019726,2]
[346295402,1734877851239,-500.0,0.00019726,2]
[346295403,1734877851248,-658.83,0.00019726,2]
[346295404,1734877851258,-776.64,0.00019726,2]
[346295405,1734877851267,-30092.32,0.00019726,2]
[346295406,1734877851277,-500.0,0.00019726,2]
[346295407,1734877851290,-644.04,0.00019726,2]
[346295408,1734877851300,-500.0,0.00019726,2]
[346295409,1734877851310,-500.0,0.00019726,2]
[346295410,1734877851319,-2998.78,0.00019726,2]
[346295411,1734877851329,-500.0,0.00019726,2]
[346295412,1734877851339,-609.95,0.00019726,2]
[346295413,1734877851349,-2281.41,0.00019726,2]
[346295414,1734877851359,-500.0,0.00019726,2]
[346295415,1734877851369,-500.0,0.00019726,2]
[346295416,1734877851378,-500.0,0.00019726,2]
[346295417,1734877851390,-1769.68,0.00019726,2]
[346295418,1734877851401,-500.0,0.00019726,2]
[346295419,1734877851410,-500.0,0.00019726,2]
[346295420,1734877851421,-2209.68,0.00019726,2]
[346295421,1734877851431,-500.0,0.00019726,2]
[346295422,1734877851443,-1736.21,0.00019726,2]
[346295423,1734877851455,-500.0,0.00019726,2]
[346295424,1734877851468,-2248.71,0.00019726,2]
[346295425,1734877851477,-150.0,0.00019728,2]
[346295426,1734877851487,-150.0,0.00019728,2]
[346295427,1734877851498,-150.0,0.0001973,2]
[346295428,1734877851508,-150.0,0.00019733,2]
[346295429,1734877851517,-150.0,0.00019734,2]
[346295430,1734877851527,-150.0,0.00019736,2]
[346295431,1734877851536,-150.0,0.00019738,2]
[346295432,1734877851546,-150.0,0.00019738,2]
[346295433,1734877851556,-1500.0,0.00019739,2]
[346295434,1734877851565,-1500.0,0.00019739,2]
[346295435,1734877851575,-150.0,0.0001974,2]
[346295436,1734877851585,-150.0,0.00019742,2]
[346295437,1734877851595,-150.0,0.00019745,2]
[346295438,1734877851606,-150.0,0.00019746,2]
[346295439,1734877851615,-1500.0,0.00019747,2]
[346295440,1734877851625,-150.0,0.00019749,2]
[346295441,1734877851634,-150.0,0.0001975,2]
[346295442,1734877851647,-207.0,0.0001975,2]
[346295443,1734877851657,-150.0,0.00019752,2]
[346295444,1734877851667,-150.0,0.00019753,2]
[346295445,1734877851676,-150.0,0.00019758,2]
[346295446,1734877851686,-150.0,0.00019758,2]
[346295447,1734877851696,-150.0,0.0001976,2]
[346295448,1734877851705,-150.0,0.00019762,2]
[346295449,1734877851715,-150.0,0.00019764,2]
[346295450,1734877851724,-150.0,0.00019767,2]
[346295451,1734877851735,-150.0,0.00019769,2]
[346295452,1734877851744,-421.45516041,0.0001977,2]
[346295453,1734877851754,-260.03028348,0.00019773,2]
[346295454,1734877851764,-500.46287762,0.00019773,2]
[346295455,1734877851774,-500.0,0.00019773,2]
[346295456,1734877851783,-500.0,0.00019773,2]
[346295457,1734877851792,-500.0,0.00019773,2]
[346295458,1734877851802,-150.0,0.00019774,2]
[346295459,1734877851812,-150.0,0.00019778,2]
[346295460,1734877851821,-211296.64889594,0.0001978,2]
[346295461,1734877851830,-150.0,0.00019782,2]
[346295462,1734877851840,-150.0,0.00019788,2]
[346295463,1734877851851,-704.66312219,0.0001979,2]
[346295464,1734877851861,-150.0,0.00019795,2]
[346295465,1734877851870,-150.0,0.00019795,2]
[346295466,1734877851879,-150.0,0.00019795,2]
[346295467,1734877851891,-150.0,0.00019796,2]
[346295468,1734877851902,-1500.0,0.00019796,2]
[346295469,1734877851911,-150.0,0.00019798,2]
[346295470,1734877851921,-56074.0,0.000198,2]
[346295471,1734877851930,-150.0,0.000198,2]
[346295472,1734877851940,-24401.304037,0.000198,2]
[346295473,1734877851950,-24401.304037,0.000198,2]
[346295474,1734877851960,-24401.304037,0.000198,2]
[346295475,1734877851970,-24401.304037,0.000198,2]
[346295476,1734877851980,-24401.304037,0.000198,2]
[346295477,1734877851989,-24401.304037,0.000198,2]
[346295478,1734877851999,-24401.304037,0.000198,2]
[346295479,1734877852009,-24401.304037,0.000198,2]
[346295480,1734877852019,-24401.304037,0.000198,2]
[346295481,1734877852028,-24401.304037,0.000198,2]
[346295482,1734877852038,-24401.304037,0.000198,2]
[346295483,1734877852048,-24401.304037,0.000198,2]
[346295484,1734877852058,-24401.304037,0.000198,2]
[346295485,1734877852069,-24401.304037,0.000198,2]
[346295486,1734877852079,-24401.304037,0.000198,2]
[346295487,1734877852088,-24401.304037,0.000198,2]
[346295488,1734877852097,-24401.304037,0.000198,2]
[346295489,1734877852108,-24401.304037,0.000198,2]
[346295490,1734877852117,-24401.304037,0.000198,2]
[346295491,1734877852126,-24401.304037,0.000198,2]
[346295492,1734877852136,-24401.304037,0.000198,2]
[346295493,1734877852149,-24401.304037,0.000198,2]
[346295494,1734877852159,-3000.0,0.000198,2]
[346295495,1734877852168,-109751.92442705,0.000198,2]
[346295496,1734877852177,-151.0,0.000198,2]
[346295497,1734877852187,-151.0,0.000198,2]
[346295498,1734877852196,-151.0,0.000198,2]
[346295499,1734877852207,-151.0,0.000198,2]
[346295500,1734877852216,-152.961549,0.000198,2]
[346295501,1734877852226,-1000.0,0.000198,2]
[346295502,1734877852236,-485.64007,0.000198,2]
[346295503,1734877852245,-485.64007,0.000198,2]
[346295504,1734877852255,-151.0,0.000198,2]
[346295505,1734877852265,-151.0,0.000198,2]
[346295506,1734877852275,-151.0,0.000198,2]
[346295507,1734877852284,-1500.0,0.00019801,2]
[346295508,1734877852294,-150.0,0.00019801,2]
[346295509,1734877852303,-150.0,0.00019803,2]
[346295510,1734877852313,-1500.0,0.00019806,2]
[346295511,1734877852322,-150.0,0.00019809,2]
[346295512,1734877852331,-1529.14833409,0.0001981,2]
[346295513,1734877852340,-20006.69702293,0.0001981,2]
[346295514,1734877852350,-150.0,0.00019811,2]
[346295515,1734877852359,-150.0,0.00019813,2]
[346295516,1734877852368,-150.0,0.00019817,2]
[346295517,1734877852378,-150.0,0.0001982,2]
[346295518,1734877852388,-516.85589827,0.00019824,2]
[346295519,1734877852402,-150.0,0.00019827,2]
[346295520,1734877852411,-1500.0,0.00019828,2]
[346295521,1734877852420,-150.0,0.0001983,2]
[346295522,1734877852430,-1500.0,0.00019836,2]
[346295523,1734877852439,-150.0,0.00019836,2]
[346295524,1734877852448,-500.0,0.0001984,2]
[346295525,1734877852457,-1500.0,0.00019843,2]
[346295526,1734877852468,-150.0,0.00019844,2]
[346295527,1734877852477,-150.0,0.00019845,2]
[346295528,1734877852487,-1500.0,0.00019848,2]
[346295529,1734877852498,-150.0,0.0001985,2]
[346295530,1734877852508,-299.99999901,0.0001985,2]
[346295531,1734877852517,-500.0,0.00019862,2]
[346295532,1734877852528,-1500.0,0.00019864,2]
[346295533,1734877852537,-150.0,0.00019866,2]
[346295534,1734877852547,-150.0,0.00019866,2]
[346295535,1734877852557,-150.0,0.00019866,2]
[346295536,1734877852566,-150.0,0.00019869,2]
[346295537,1734877852576,-4000.0,0.0001987,2]
[346295538,1734877852586,-150.0,0.00019872,2]
[346295539,1734877852596,-150.0,0.00019874,2]
[346295540,1734877852605,-150.0,0.00019876,2]
[346295541,1734877852755,-150.0,0.00019877,2]
[346295542,1734877852766,-150.0,0.00019878,2]
[346295543,1734877852775,-150.0,0.00019879,2]
[346295544,1734877852785,-174.14235606,0.0001988,2]
[346295545,1734877852794,-174.14235606,0.0001988,2]
[346295546,1734877852803,-174.14235606,0.0001988,2]
[346295547,1734877852813,-174.14235606,0.0001988,2]
[346295548,1734877852822,-174.14235606,0.0001988,2]
[346295549,1734877852831,-174.14235606,0.0001988,2]
[346295550,1734877852841,-174.14235606,0.0001988,2]
[346295551,1734877852850,-174.14235606,0.0001988,2]
[346295552,1734877852859,-174.14235606,0.0001988,2]
[346295553,1734877852869,-174.14235606,0.0001988,2]
[346295554,1734877852879,-174.14235606,0.0001988,2]
[346295555,1734877852894,-174.14235606,0.0001988,2]
[346295556,1734877852906,-174.14235606,0.0001988,2]
[346295557,1734877852915,-174.14235606,0.0001988,2]
[346295558,1734877852925,-174.14235606,0.0001988,2]
[346295559,1734877852935,-174.14235606,0.0001988,2]
[346295560,1734877852944,-174.14235606,0.0001988,2]
[346295561,1734877852954,-174.14235606,0.0001988,2]
[346295562,1734877852963,-174.14235606,0.0001988,2]
[346295563,1734877852972,-174.14,0.0001988,2]
[346295564,1734877852981,-150.0,0.00019883,2]
[346295565,1734877852991,-150.0,0.00019886,2]
[346295566,1734877853000,-300.0,0.00019886,2]
[346295567,1734877853009,-150.0,0.00019889,2]
[346295568,1734877853018,-150.0,0.0001989,2]
[346295569,1734877853027,-150.0,0.00019893,2]
[346295570,1734877853037,-158.05,0.00019895,2]
[346295571,1734877853046,-150.0,0.00019895,2]
[346295572,1734877853055,-150.0,0.00019895,2]
[346295573,1734877853065,-100043.8403191,0.00019895,2]
[346295574,1734877853076,-150.0,0.00019896,2]
[346295575,1734877853085,-150.0,0.00019897,2]
[346295576,1734877853094,-150.0,0.00019897,2]
[346295577,1734877853104,-2939.79,0.00019899,2]
[346295578,1734877853113,-150.0,0.00019899,2]
[346295579,1734877853123,-150.0,0.00019899,2]
[346295580,1734877853133,-38416.5738,0.000199,2]
[346295581,1734877853144,-162.702091,0.000199,2]
[346295582,1734877853154,-150.0,0.000199,2]
[346295583,1734877853164,-1879266.9214688,0.000199,2]
[346295584,1734877853174,-151.0,0.000199,2]
[346295585,1734877853184,-151.0,0.000199,2]
[346295586,1734877853194,-151.0,0.000199,2]
[346295587,1734877853203,-151.0,0.000199,2]
[346295588,1734877853213,-485.64007,0.000199,2]
[346295589,1734877853222,-485.64007,0.000199,2]
[346295590,1734877853232,-151.0,0.000199,2]
[346295591,1734877853241,-261.21353409,0.000199,2]
[346295592,1734877853250,-261.21353409,0.000199,2]
[346295593,1734877853260,-261.21353409,0.000199,2]
[346295594,1734877853269,-261.21353409,0.000199,2]
[346295595,1734877853279,-261.21353409,0.000199,2]
[346295596,1734877853288,-261.21353409,0.000199,2]
[346295597,1734877853297,-261.21353409,0.000199,2]
[346295598,1734877853307,-261.21353409,0.000199,2]
[346295599,1734877853316,-261.21353409,0.000199,2]
[346295600,1734877853325,-261.21353409,0.000199,2]
[346295601,1734877853334,-261.21353409,0.000199,2]
[346295602,1734877853343,-261.21353409,0.000199,2]
[346295603,1734877853353,-261.21353409,0.000199,2]
[346295604,1734877853362,-261.21353409,0.000199,2]
[346295605,1734877853373,-261.21353409,0.000199,2]
[346295606,1734877853382,-261.21353409,0.000199,2]
[346295607,1734877853393,-261.21353409,0.000199,2]
[346295608,1734877853403,-261.21353409,0.000199,2]
[346295609,1734877853412,-261.21353409,0.000199,2]
[346295610,1734877853421,-261.21,0.000199,2]
[346295611,1734877853430,-151.0,0.000199,2]
[346295612,1734877853439,-151.0,0.000199,2]
[346295613,1734877853449,-13762.13470299,0.000199,2]
[346295614,1734877853458,-1523.0,0.000199,2]
[346295615,1734877853468,-150.0,0.00019903,2]
[346295616,1734877853478,-150.0,0.00019904,2]
[346295617,1734877853488,-150.0,0.00019912,2]
[346295618,1734877853497,-150.0,0.00019913,2]
[346295619,1734877853507,-150.0,0.00019913,2]
[346295620,1734877853517,-150.0,0.00019915,2]
[346295621,1734877853526,-150.0,0.00019919,2]
[346295622,1734877853536,-150.0,0.0001992,2]
[346295623,1734877853546,-150.0,0.00019927,2]
[346295624,1734877853556,-150.0,0.00019934,2]
[346295625,1734877853566,-150.0,0.00019936,2]
[346295626,1734877853576,-150.0,0.00019938,2]
[346295627,1734877853586,-150.0,0.00019941,2]
[346295628,1734877853595,-150.0,0.00019942,2]
[346295629,1734877853605,-150.0,0.00019946,2]
[346295630,1734877853615,-150.0,0.00019949,2]
[346295631,1734877853625,-150.0,0.0001995,2]
[346295632,1734877853634,-150.0,0.00019952,2]
[346295633,1734877853646,-150.0,0.00019956,2]
[346295634,1734877853655,-150.0,0.00019957,2]
[346295635,1734877853665,-150.0,0.00019957,2]
[346295636,1734877853676,-150.0,0.00019959,2]
[346295637,1734877853689,-49284.99050018,0.0001996,2]
[346295638,1734877853699,-150.0,0.00019962,2]
[346295639,1734877853709,-1500.0,0.00019969,2]
[346295640,1734877853718,-552.17852518,0.0001997,2]
[346295641,1734877853727,-235.21062701,0.00019973,2]
[346295642,1734877853737,-500.0,0.00019973,2]
[346295643,1734877853747,-500.2820698,0.00019973,2]
[346295644,1734877853757,-501.49009623,0.00019973,2]
[346295645,1734877853768,-150.0,0.00019975,2]
[346295646,1734877853778,-150.0,0.00019977,2]
[346295647,1734877853787,-150.0,0.00019979,2]
[346295648,1734877853797,-150.0,0.00019979,2]
[346295649,1734877853806,-150.0,0.00019979,2]
[346295650,1734877853816,-579.46241347,0.0001998,2]
[346295651,1734877853826,-150.0,0.0001998,2]
[346295652,1734877853836,-150.0,0.0001998,2]
[346295653,1734877853846,-3474662.06300808,0.0001998,2]
[346295654,1734877853855,-151.0,0.0001998,2]
[346295655,1734877853864,-151.0,0.0001998,2]
[346295656,1734877853874,-151.0,0.0001998,2]
[346295657,1734877853883,-151.0,0.0001998,2]
[346295658,1734877853894,-485.64007,0.0001998,2]
[346295659,1734877853904,-485.64007,0.0001998,2]
[346295660,1734877853913,-151.0,0.0001998,2]
[346295661,1734877853923,-151.0,0.0001998,2]
[346295662,1734877853932,-151.0,0.0001998,2]
[346295663,1734877853941,-151.0,0.0001998,2]
[346295664,1734877853954,-151.0,0.0001998,2]
[346295665,1734877853963,-151.0,0.0001998,2]
[346295666,1734877853973,-151.0,0.0001998,2]
[346295667,1734877853982,-282.324339,0.0001998,2]
[346295668,1734877853991,-282.324339,0.0001998,2]
[346295669,1734877854000,-152.571624,0.0001998,2]
[346295670,1734877854010,-152.396621,0.0001998,2]
[346295671,1734877854019,-151.0,0.0001998,2]
[346295672,1734877854028,-289.991816,0.0001998,2]
[346295673,1734877854038,-163.75896,0.0001998,2]
[346295674,1734877854047,-151.0,0.0001998,2]
[346295675,1734877854058,-262.81,0.00019983,2]
[346295676,1734877854072,-151.0,0.00019983,2]
[346295677,1734877854080,-151.0,0.00019983,2]
[346295678,1734877854089,-151.0,0.00019983,2]
[346295679,1734877854099,-151.0,0.00019983,2]
[346295680,1734877854108,-151.0,0.00019983,2]
[346295681,1734877854117,-151.0,0.00019983,2]
[346295682,1734877854127,-151.0,0.00019983,2]
[346295683,1734877854136,-151.0,0.00019983,2]
[346295684,1734877854150,-151.0,0.00019983,2]
[346295685,1734877854160,-151.0,0.00019983,2]
[346295686,1734877854169,-153.67,0.00019983,2]
[346295687,1734877854179,-150.0,0.00019984,2]
[346295688,1734877854188,-80000.0,0.00019985,2]
[346295689,1734877854198,-590.91344228,0.0001999,2]
[346295690,1734877854207,-21311.78300961,0.0001999,2]
[346295691,1734877854216,-15416.27835465,0.0001999,2]
[346295692,1734877854225,-300.0,0.00019992,2]
[346295693,1734877854235,-150.0,0.00019993,2]
[346295694,1734877854245,-300.0,0.00019993,2]
[346295695,1734877854254,-204.71391,0.00019995,2]
[346295696,1734877854264,-500.0,0.00019999,2]
[346295697,1734877854275,-94880.87474971,0.00019999,2]
[346295698,1734877854288,-2939.79,0.00019999,2]
[346295699,1734877854300,-2939.79,0.00019999,2]
[346295700,1734877854314,-2939.79,0.00019999,2]
[346295701,1734877854323,-2939.79,0.00019999,2]
[346295702,1734877854333,-2939.79,0.00019999,2]
[346295703,1734877854342,-2939.79,0.00019999,2]
[346295704,1734877854351,-2939.79,0.00019999,2]
[346295705,1734877854361,-2939.79,0.00019999,2]
[346295706,1734877854371,-2939.79,0.00019999,2]
[346295707,1734877854380,-2939.79,0.00019999,2]
[346295708,1734877854390,-2939.79,0.00019999,2]
[346295709,1734877854401,-2939.79,0.00019999,2]
[346295710,1734877854410,-2939.92,0.00019999,2]
[346295711,1734877854420,-150.0,0.00019999,2]
[346295712,1734877854430,-150.0,0.00019999,2]
[346295713,1734877854439,-150.0,0.00019999,2]
[346295714,1734877854449,-150.0,0.00019999,2]
[346295715,1734877854458,-150.0,0.00019999,2]
[346295716,1734877854467,-150.0,0.00019999,2]
[346295717,1734877854477,-150.0,0.00019999,2]
[346295718,1734877854487,-150.0,0.00019999,2]
[346295719,1734877854496,-150.0,0.00019999,2]
[346295720,1734877854505,-150.0,0.00019999,2]
[346295721,1734877854515,-259.56180594,0.00019999,2]
[346295722,1734877854524,-1556780.14814192,0.0002,3]
[346295723,1734877854534,-7963.29544092,0.0002,3]
[346295724,1734877854543,-6354759.26514561,0.0002,2]
[346295725,1734877855313,-3622.39033404,0.00014657,2]
[346295726,1734877855340,-1243.8297712,0.00014657,2]
[346295727,1734877855353,-10008.527492,0.00014657,2]
[346295728,1734877855362,-522.58,0.00019178,2]
[346295729,1734877855371,-500.0,0.00019178,2]
[346295730,1734877855381,-500.0,0.00019178,2]
[346295731,1734877855391,-500.0,0.00019178,2]
[346295732,1734877855402,-522.58,0.00019452,2]
[346295733,1734877855412,-500.0,0.00019452,2]
[346295734,1734877855421,-522.58,0.00019726,2]
[346295735,1734877855431,-445.02,0.00019726,2]
[346295736,1734877855442,-289.991816,0.0001998,2]
[346295737,1734877855452,-424147.5488933,0.0002,2]
[346295738,1734877855736,-412.63837188,0.00017343,2]
[346295739,1734877855746,-500.0,0.00019178,2]
[346295740,1734877855756,-505.63507947,0.00019178,2]
[346295741,1734877855766,-500.0,0.00019178,2]
[346295742,1734877855776,-500.0,0.00019178,2]
[346295743,1734877855785,-554.58315407,0.000199,2]
[346295744,1734877855795,-151.0,0.0001998,2]
[346295745,1734877855805,-9245.33701007,0.0002,2]
[346295746,1734877855824,-528.47421814,0.00019178,2]
[346295747,1734877855834,-3379.31876187,0.0002,2]
[346295748,1734877855845,-1512.7,0.0002,2]
[346295749,1734877855865,-281.48008961,0.0002,2]
[346295750,1734877855877,-992.79,0.0002,2]
[346295751,1734877855888,-937.5,0.0002,2]
[346295752,1734877856085,-10105.0,0.0002,2]
[346295753,1734877856101,-9506.0,0.0002,2]
[346295754,1734877856114,-190150.64220867,0.0002,2]
[346295755,1734877856157,-546.073235,0.0002,2]
[346295756,1734877856195,-1648.35,0.00015375,2]
[346295757,1734877856206,-358.38556697,0.00015375,2]
[346295758,1734877856385,-1921.152,0.00015375,2]
[346295759,1734877856401,-10946.86003027,0.00015375,2]
[346295760,1734877856411,-500.0,0.00019178,2]
[346295761,1734877856420,-545.45,0.00019178,2]
[346295762,1734877856429,-500.0,0.00019178,2]
[346295763,1734877856439,-500.0,0.00019178,2]
[346295764,1734877856448,-500.0,0.00019452,2]
[346295765,1734877856458,-500.0,0.00019726,2]
[346295766,1734877856468,-5019.68996973,0.0002,2]
[346295767,1734877856826,-8192.51495258,0.0002,2]
[346295768,1734877856842,-3236.94559982,0.0002,2]
[346295769,1734877856854,-2213.45806541,0.0002,2]
[346295770,1734877856865,-269.8668,0.0002,2]
[346295771,1734877856876,-5492.44600648,0.0002,2]
[346295772,1734877856891,-772.09808,0.0002,2]
[346295773,1734877856909,-3805.83049162,0.0002,2]
[346295774,1734877856925,-399.78581851,0.0002,2]
[346295775,1734877856936,-395.31149671,0.0002,2]
[346295776,1734877857061,-648.56010815,0.0002,2]
[346295777,1734877857091,-1116.32499024,0.0002,2]
[346295778,1734877857103,-393.87334999,0.0002,2]
[346295779,1734877857128,-6769.25669112,0.0002,2]
[346295780,1734878195872,150.0,0.00018,30]
[346295782,1734878365653,70000.0,0.0002,120]
[346295783,1734878377719,79221.95971236,0.0002,120]
[346295784,1734878411792,269.31,0.00010137,2]
[346295789,1734878919920,163.0,0.00016962,30]
[346295804,1734879031888,-450.0,0.00013,2]
[346295805,1734879031901,-164.3,0.00013699,2]
[346295806,1734879031914,-171.18,0.00013732,2]
[346295807,1734879031927,-89.96758386,0.000141,2]
[346295808,1734879031943,-450.0,0.000141,2]
[346295809,1734879032370,-1292.5814419,0.000141,2]
[346295810,1734879032383,-1204.56856532,0.000141,2]
[346295811,1734879032396,-604.32310367,0.000141,2]
[346295812,1734879032413,-692.77500015,0.000141,2]
[346295813,1734879032428,-43010.79713,0.000141,2]
[346295814,1734879032440,-54519.68267483,0.000141,2]
[346295815,1734879032452,-34654.20197863,0.000141,2]
[346295816,1734879032467,-437.7779378,0.000141,2]
[346295817,1734879032567,-41492.23640815,0.000141,2]
[346295818,1734879032584,-1196.511476,0.000141,2]
[346295819,1734879032603,-337.862729,0.000141,2]
[346295820,1734879032617,-5700.88213685,0.000141,2]
[346295821,1734879032632,-22371.83183384,0.000141,2]
[346295822,1734879032644,-300.0,0.00014199,2]
[346295823,1734879032655,-182.48,0.00014242,2]
[346295824,1734879032666,-14670.69869219,0.00014399,2]
[346295826,1734879032678,-193.09384646,0.00014499,2]
[346295828,1734879032689,-5561.0,0.000145,3]
[346295829,1734879032701,-3889.14885825,0.00014599,2]